fUSD/lending_fUSD_20250620
["ID","MTS","AMOUNT","RATE_DAILY","PERIOD"]
[366775653,1750441849975,-104.59489975,0.00026753,4]
[366775654,1750441849989,-481.68510025,0.00026753,4]
[366775655,1750441849999,-490.0,0.00026753,4]
[366775656,1750441850009,-490.0,0.00026753,4]
[366775657,1750441850018,-490.0,0.00026753,4]
[366775658,1750441850028,-453.54142116,0.00026753,4]
[366775659,1750441850039,-490.0,0.00026753,4]
[366775660,1750441850050,-490.0,0.00026753,4]
[366775661,1750441850059,-1318.49,0.00026753,4]
[366775662,1750441850070,-2106.28347859,0.00026753,4]
[366775663,1750441850090,-1075.89978731,0.00026472,2]
[366775664,1750441850100,-370.81893499,0.00026472,2]
[366775665,1750441850112,-279.74419682,0.00026472,2]
[366775666,1750441850124,-269.6328023,0.00026472,2]
[366775667,1750441850574,-358.33485164,0.00026369,4]
[366775668,1750441850587,-131.66514836,0.00026369,4]
[366775669,1750441850598,-490.0,0.00026379,4]
[366775670,1750441850607,-490.0,0.00026379,4]
[366775671,1750441850618,-155.7038532,0.00026472,2]
[366775672,1750441850628,-767.15977503,0.00026472,2]
[366775673,1750441850640,-308.74001228,0.00026472,2]
[366775674,1750441850651,-242.85998772,0.00026472,2]
[366775675,1750441850664,-833.03979959,0.00026472,2]
[366775676,1750441850675,-1075.89978731,0.00026472,2]
[366775677,1750441850684,-103.0933521,0.00026472,2]
[366775678,1750441850697,-972.80643521,0.00026472,2]
[366775679,1750441850707,-1075.89978731,0.00026472,2]
[366775680,1750441850717,-1075.89978731,0.00026472,2]
[366775681,1750441850731,-1075.89978731,0.00026472,2]
[366775682,1750441850741,-1075.89978731,0.00026472,2]
[366775683,1750441850750,-1075.89978731,0.00026472,2]
[366775684,1750441850762,-1075.89978731,0.00026472,2]
[366775685,1750441850771,-1075.89978731,0.00026472,2]
[366775686,1750441850781,-1075.89978731,0.00026472,2]
[366775687,1750441850791,-1075.89978731,0.00026472,2]
[366775688,1750441850801,-1075.89978731,0.00026472,2]
[366775689,1750441850811,-1075.89978731,0.00026472,2]
[366775690,1750441850820,-1075.89978731,0.00026472,2]
[366775691,1750441850830,-1075.89978731,0.00026472,2]
[366775692,1750441850839,-1075.89978731,0.00026472,2]
[366775693,1750441850849,-1075.89978731,0.00026472,2]
[366775694,1750441850858,-1075.89978731,0.00026472,2]
[366775695,1750441850868,-1075.89978731,0.00026472,2]
[366775696,1750441850877,-1075.89978731,0.00026472,2]
[366775697,1750441850887,-1075.89978731,0.00026472,2]
[366775698,1750441850897,-1075.89978731,0.00026472,2]
[366775699,1750441850909,-1075.89978731,0.00026472,2]
[366775700,1750441850919,-1075.89978731,0.00026472,2]
[366775701,1750441850928,-1075.89978731,0.00026472,2]
[366775702,1750441850937,-1075.89978731,0.00026472,2]
[366775703,1750441850948,-1075.89978731,0.00026472,2]
[366775704,1750441850958,-1075.89978731,0.00026472,2]
[366775705,1750441850967,-1075.89978731,0.00026472,2]
[366775706,1750441850981,-1075.89978731,0.00026472,2]
[366775707,1750441850991,-1075.89978731,0.00026472,2]
[366775708,1750441851000,-1075.89978731,0.00026472,2]
[366775709,1750441851010,-1075.89978731,0.00026472,2]
[366775710,1750441851019,-1075.89978731,0.00026472,2]
[366775711,1750441851030,-1075.89978731,0.00026472,2]
[366775712,1750441851041,-490.0,0.00026643,4]
[366775713,1750441851051,-490.0,0.00026652,4]
[366775714,1750441851061,-490.0,0.00026653,4]
[366775715,1750441851071,-1209.32652141,0.00026753,4]
[366775716,1750441851081,-646.36,0.00026754,4]
[366775717,1750441851091,-490.0,0.00026755,4]
[366775718,1750441851101,-500.0,0.00026759,2]
[366775719,1750441851111,-500.0,0.00026759,4]
[366775720,1750441851120,-1740.22,0.00026759,4]
[366775721,1750441851132,-659.78,0.0002676,4]
[366775722,1750441851145,-740.99,0.0002676,4]
[366775723,1750441851155,-713.92,0.0002676,4]
[366775724,1750441851164,-168.0,0.00026768,2]
[366775725,1750441851175,-166.87603076,0.00026788,2]
[366775726,1750441851187,-627.06,0.000268,2]
[366775727,1750441851198,-6952.0,0.000268,2]
[366775728,1750441851210,-1000.0,0.00026801,10]
[366775729,1750441851220,-681.86810959,0.00026801,10]
[366775730,1750441851236,-318.13189041,0.00026801,10]
[366775731,1750441851246,-1000.0,0.00026801,10]
[366775732,1750441851255,-794.12306959,0.00026801,10]
[366775733,1750441851267,-205.87693041,0.00026801,10]
[366775734,1750441851276,-1000.0,0.00026801,10]
[366775735,1750441851286,-1000.0,0.00026801,10]
[366775736,1750441851295,-206.61705958,0.00026801,10]
[366775737,1750441851312,-490.0,0.0002638,4]
[366775738,1750441851322,-82.75163294,0.00026801,10]
[366775739,1750441851334,-356.84648998,0.00026801,10]
[366775740,1750441851347,-353.7848175,0.00026801,10]
[366775741,1750441851357,-675.0151825,0.00026801,10]
[366775742,1750441851567,-324.9848175,0.00026801,10]
[366775743,1750441851577,-1000.0,0.00026801,10]
[366775744,1750441851587,-1000.0,0.00026801,10]
[366775745,1750441851597,-834.11677829,0.0002681,10]
[366775746,1750441851606,-2163.38427976,0.00026831,15]
[366775747,1750441851615,-151.0,0.00026866,2]
[366775748,1750441851625,-1500.0,0.00026868,2]
[366775749,1750441851634,-1800.0,0.000269,9]
[366775750,1750441851644,-490.0,0.00026917,4]
[366775751,1750441851654,-490.0,0.00026926,4]
[366775752,1750441851664,-490.0,0.00026926,4]
[366775753,1750441851674,-490.0,0.00026926,4]
[366775754,1750441851683,-490.0,0.00026926,4]
[366775755,1750441851693,-490.0,0.00026926,4]
[366775756,1750441851703,-490.0,0.00026926,4]
[366775757,1750441851712,-573.68,0.00026926,4]
[366775758,1750441851724,-490.0,0.00026926,4]
[366775759,1750441851733,-685.81,0.00026926,4]
[366775760,1750441851743,-490.0,0.00026926,4]
[366775761,1750441851754,-490.0,0.00026926,4]
[366775762,1750441851764,-646.05,0.00026926,4]
[366775763,1750441851774,-490.0,0.00026927,4]
[366775764,1750441851784,-565.55,0.00026927,4]
[366775765,1750441851795,-490.0,0.00026927,4]
[366775766,1750441851804,-490.0,0.00026927,4]
[366775767,1750441851814,-490.0,0.00026927,4]
[366775768,1750441851824,-280.04,0.00026927,4]
[366775769,1750441851834,-490.0,0.00026927,4]
[366775770,1750441851844,-490.0,0.00026927,4]
[366775771,1750441851854,-490.0,0.00026927,4]
[366775772,1750441851864,-490.0,0.00026927,4]
[366775773,1750441851873,-490.0,0.00026927,4]
[366775774,1750441851883,-490.0,0.00026927,4]
[366775775,1750441851892,-490.0,0.00026927,4]
[366775776,1750441851902,-490.0,0.00026927,4]
[366775777,1750441851911,-490.0,0.00026927,4]
[366775778,1750441851921,-490.0,0.00026927,4]
[366775779,1750441851931,-490.0,0.00026927,4]
[366775780,1750441851941,-253.567097,0.00026927,4]
[366775781,1750441851951,-356.88790749,0.00026927,4]
[366775782,1750441851961,-625.05,0.00026927,4]
[366775783,1750441851971,-490.0,0.00026927,4]
[366775784,1750441851981,-490.0,0.00026927,4]
[366775785,1750441851991,-760.46,0.00026927,4]
[366775786,1750441852000,-619.66,0.00026927,4]
[366775787,1750441852010,-490.0,0.00026927,4]
[366775788,1750441852020,-490.0,0.00026927,4]
[366775789,1750441852030,-490.0,0.00026927,4]
[366775790,1750441852040,-490.0,0.00026927,4]
[366775791,1750441852049,-490.0,0.00026927,4]
[366775792,1750441852060,-490.0,0.00026927,4]
[366775793,1750441852069,-490.0,0.00026927,4]
[366775794,1750441852079,-490.0,0.00026927,4]
[366775795,1750441852090,-490.0,0.00026927,4]
[366775796,1750441852100,-490.0,0.00026927,4]
[366775797,1750441852109,-490.0,0.00026927,4]
[366775798,1750441852119,-490.0,0.00026927,4]
[366775799,1750441852130,-490.0,0.00026927,4]
[366775800,1750441852143,-490.0,0.00026927,4]
[366775801,1750441852153,-490.0,0.00026927,4]
[366775802,1750441852162,-159.98,0.00026927,4]
[366775803,1750441852172,-490.0,0.00026927,4]
[366775804,1750441852182,-605.39,0.00026927,4]
[366775805,1750441852192,-490.0,0.00026927,4]
[366775806,1750441852202,-490.0,0.00026927,4]
[366775807,1750441852213,-3367.75,0.00026927,4]
[366775808,1750441852224,-490.0,0.00026927,4]
[366775809,1750441852234,-623.80166332,0.00026927,4]
[366775810,1750441852243,-490.0,0.00026927,4]
[366775811,1750441852254,-486.06434391,0.00026928,4]
[366775812,1750441852267,-490.0,0.00026928,4]
[366775813,1750441852281,-490.0,0.00026928,4]
[366775814,1750441852297,-490.0,0.00026928,4]
[366775815,1750441852313,-490.0,0.00026928,4]
[366775816,1750441852325,-490.0,0.00026928,4]
[366775817,1750441852337,-490.0,0.00026928,4]
[366775818,1750441852351,-490.0,0.00026928,4]
[366775819,1750441852365,-490.0,0.00026928,4]
[366775820,1750441852378,-490.0,0.00026928,4]
[366775821,1750441852391,-490.0,0.00026928,4]
[366775822,1750441852405,-158.11557348,0.00026928,4]
[366775823,1750441852418,-158.05,0.00026928,4]
[366775824,1750441852432,-278.43,0.00026928,4]
[366775825,1750441852446,-490.0,0.00026928,4]
[366775826,1750441852458,-490.0,0.00026928,4]
[366775827,1750441852471,-392.35,0.00026928,4]
[366775828,1750441852485,-490.0,0.00026928,4]
[366775829,1750441852496,-490.0,0.00026928,4]
[366775830,1750441852507,-563.45,0.00026928,4]
[366775831,1750441852521,-490.0,0.00026928,4]
[366775832,1750441852534,-490.0,0.00026928,4]
[366775833,1750441852547,-490.0,0.00026928,4]
[366775834,1750441852560,-490.0,0.00026928,4]
[366775835,1750441852573,-490.0,0.00026928,4]
[366775836,1750441852586,-490.0,0.00026928,4]
[366775837,1750441852600,-490.0,0.00026928,4]
[366775838,1750441852613,-490.0,0.00026928,4]
[366775839,1750441852626,-490.0,0.00026928,4]
[366775840,1750441852640,-628.25954811,0.00026928,4]
[366775841,1750441852652,-490.0,0.00026928,4]
[366775842,1750441852666,-490.0,0.00026928,4]
[366775843,1750441852679,-490.0,0.00026928,4]
[366775844,1750441852693,-490.0,0.00026928,4]
[366775845,1750441852707,-490.0,0.00026928,4]
[366775846,1750441852719,-490.0,0.00026928,4]
[366775847,1750441852734,-490.0,0.00026928,4]
[366775848,1750441852746,-490.0,0.00026928,4]
[366775849,1750441852759,-490.0,0.00026928,4]
[366775850,1750441852772,-490.0,0.00026928,4]
[366775851,1750441852787,-490.0,0.00026928,4]
[366775852,1750441852799,-490.0,0.00026928,4]
[366775853,1750441852811,-1503.55,0.00026928,4]
[366775854,1750441852824,-329.78,0.00026928,4]
[366775855,1750441852837,-763.63,0.00026928,4]
[366775856,1750441852847,-490.0,0.00026928,4]
[366775857,1750441852858,-1179.75,0.00026928,4]
[366775858,1750441852869,-490.0,0.00026928,4]
[366775859,1750441852880,-599.07,0.00026928,4]
[366775860,1750441852892,-490.0,0.00026928,4]
[366775861,1750441852907,-1945.11,0.00026928,4]
[366775862,1750441852921,-554.95,0.00026928,4]
[366775863,1750441852932,-490.0,0.00026928,4]
[366775864,1750441852942,-2442.78,0.00026928,4]
[366775865,1750441852953,-490.0,0.00026928,4]
[366775866,1750441852965,-628.75,0.00026928,4]
[366775867,1750441852979,-490.0,0.00026928,4]
[366775868,1750441852991,-817.61,0.00026928,4]
[366775869,1750441853006,-490.0,0.00026928,4]
[366775870,1750441853019,-324.85,0.00026928,4]
[366775871,1750441853031,-490.0,0.00026928,4]
[366775872,1750441853043,-490.0,0.00026928,4]
[366775873,1750441853054,-490.0,0.00026928,4]
[366775874,1750441853066,-188.02,0.00026928,4]
[366775875,1750441853078,-490.0,0.00026928,4]
[366775876,1750441853090,-490.0,0.00026928,4]
[366775877,1750441853101,-599.87,0.00026928,4]
[366775878,1750441853113,-490.0,0.00026928,4]
[366775879,1750441853125,-663.35,0.00026928,4]
[366775880,1750441853144,-565.32505077,0.00026928,4]
[366775881,1750441853155,-490.0,0.00026928,4]
[366775882,1750441853167,-490.0,0.00026928,4]
[366775883,1750441853180,-655.03,0.00026928,4]
[366775884,1750441853192,-490.0,0.00026928,4]
[366775885,1750441853204,-490.0,0.00026928,4]
[366775886,1750441853218,-490.0,0.00026928,4]
[366775887,1750441853232,-490.0,0.00026928,4]
[366775888,1750441853244,-490.0,0.00026928,4]
[366775889,1750441853256,-490.0,0.00026928,4]
[366775890,1750441853268,-490.0,0.00026928,4]
[366775891,1750441853280,-490.0,0.00026928,4]
[366775892,1750441853291,-621.91,0.00026928,4]
[366775893,1750441853304,-490.0,0.00026928,4]
[366775894,1750441853316,-490.0,0.00026928,4]
[366775895,1750441853328,-668.24,0.00026928,4]
[366775896,1750441853340,-490.0,0.00026928,4]
[366775897,1750441853352,-490.0,0.00026928,4]
[366775898,1750441853363,-490.0,0.00026928,4]
[366775899,1750441853376,-490.0,0.00026928,4]
[366775900,1750441853388,-490.0,0.00026928,4]
[366775901,1750441853401,-490.0,0.00026928,4]
[366775902,1750441853413,-1258.92,0.00026928,4]
[366775903,1750441853426,-1745.46,0.00026928,4]
[366775904,1750441853438,-490.0,0.00026928,4]
[366775905,1750441853450,-490.0,0.00026928,4]
[366775906,1750441853463,-490.0,0.00026928,4]
[366775907,1750441853476,-490.0,0.00026928,4]
[366775908,1750441853488,-490.0,0.00026928,4]
[366775909,1750441853501,-903.3,0.00026928,4]
[366775910,1750441853512,-490.0,0.00026928,4]
[366775911,1750441853524,-490.0,0.00026928,4]
[366775912,1750441853536,-490.0,0.00026928,4]
[366775913,1750441853548,-490.0,0.00026928,4]
[366775914,1750441853560,-490.0,0.00026928,4]
[366775915,1750441853573,-490.0,0.00026928,4]
[366775916,1750441853585,-490.0,0.00026928,4]
[366775917,1750441853598,-562.77,0.00026928,4]
[366775918,1750441853610,-490.0,0.00026928,4]
[366775919,1750441853623,-490.0,0.00026928,4]
[366775920,1750441853636,-490.0,0.00026928,4]
[366775921,1750441853648,-636.94098006,0.00026928,4]
[366775922,1750441853660,-490.0,0.00026928,4]
[366775923,1750441853674,-490.0,0.00026928,4]
[366775924,1750441853687,-490.0,0.00026928,4]
[366775925,1750441853699,-490.0,0.00026928,4]
[366775926,1750441853712,-442.1765376,0.00026928,4]
[366775927,1750441853724,-490.0,0.00026928,4]
[366775928,1750441853736,-490.0,0.00026928,4]
[366775929,1750441853749,-490.0,0.00026928,4]
[366775930,1750441853761,-659.78,0.00026981,4]
[366775931,1750441853774,-740.99,0.00026981,4]
[366775932,1750441853787,-713.92,0.00026981,4]
[366775933,1750441853799,-166.87603076,0.0002699,2]
[366775934,1750441853812,-157.0,0.00027,7]
[366775935,1750441853824,-500.0,0.00027021,2]
[366775936,1750441853836,-500.0,0.00027021,2]
[366775937,1750441853848,-500.0,0.00027021,2]
[366775938,1750441853859,-1000.72490521,0.00027021,2]
[366775939,1750441853871,-500.0,0.00027021,2]
[366775940,1750441853883,-500.0,0.00027021,2]
[366775941,1750441853895,-500.0,0.00027021,2]
[366775942,1750441853906,-304.33191136,0.00027021,2]
[366775943,1750441853919,-1001.57381538,0.00027021,2]
[366775944,1750441853930,-1122.65233337,0.00027021,2]
[366775945,1750441853942,-490.0,0.00027027,4]
[366775946,1750441853953,-490.0,0.00027027,4]
[366775947,1750441853965,-490.0,0.00027027,4]
[366775948,1750441853977,-490.0,0.00027027,4]
[366775949,1750441853988,-490.0,0.00027027,4]
[366775950,1750441854000,-288.84,0.00027027,4]
[366775951,1750441854012,-232.78,0.00027027,4]
[366775952,1750441854024,-490.0,0.00027027,4]
[366775953,1750441854035,-490.0,0.00027027,4]
[366775954,1750441854048,-360.91,0.00027027,4]
[366775955,1750441854060,-221.75,0.00027027,4]
[366775956,1750441854072,-490.0,0.00027027,4]
[366775957,1750441854084,-490.0,0.00027027,4]
[366775958,1750441854096,-490.0,0.00027027,4]
[366775959,1750441854107,-490.0,0.00027027,4]
[366775960,1750441854119,-490.0,0.00027027,4]
[366775961,1750441854131,-490.0,0.00027027,4]
[366775962,1750441854148,-334.58,0.00027027,4]
[366775963,1750441854160,-490.0,0.00027027,4]
[366775964,1750441854172,-510.0,0.00027027,4]
[366775965,1750441854186,-490.0,0.00027027,4]
[366775966,1750441854199,-213.58,0.00027027,4]
[366775967,1750441854210,-490.0,0.00027027,4]
[366775968,1750441854224,-390.96,0.00027027,4]
[366775969,1750441854237,-490.0,0.00027027,4]
[366775970,1750441854248,-391.18203821,0.00027027,4]
[366775971,1750441854261,-490.0,0.00027027,4]
[366775972,1750441854273,-490.0,0.00027027,4]
[366775973,1750441854286,-570.36912838,0.00027027,4]
[366775974,1750441854297,-490.0,0.00027027,4]
[366775975,1750441854309,-490.0,0.00027027,4]
[366775976,1750441854322,-490.0,0.00027027,4]
[366775977,1750441854334,-490.0,0.00027027,4]
[366775978,1750441854347,-490.0,0.00027027,4]
[366775979,1750441854358,-490.0,0.00027027,4]
[366775980,1750441854368,-490.0,0.00027027,4]
[366775981,1750441854378,-490.0,0.00027027,4]
[366775982,1750441854388,-485.4,0.00027027,4]
[366775983,1750441854398,-490.0,0.00027027,4]
[366775984,1750441854409,-490.0,0.00027027,4]
[366775985,1750441854419,-490.0,0.00027027,4]
[366775986,1750441854429,-490.0,0.00027027,4]
[366775987,1750441854440,-490.0,0.00027027,4]
[366775988,1750441854450,-607.62086368,0.00027027,4]
[366775989,1750441854460,-490.0,0.00027027,4]
[366775990,1750441854470,-490.0,0.00027027,4]
[366775991,1750441854482,-490.0,0.00027027,4]
[366775992,1750441854492,-490.0,0.00027027,4]
[366775993,1750441854502,-490.0,0.00027027,4]
[366775994,1750441854511,-377.6205242,0.00027027,4]
[366775995,1750441854521,-490.0,0.00027027,4]
[366775996,1750441854530,-490.0,0.00027027,4]
[366775997,1750441854539,-490.0,0.00027027,4]
[366775998,1750441854549,-490.0,0.00027027,4]
[366775999,1750441854559,-391.61,0.00027027,4]
[366776000,1750441854568,-490.0,0.00027027,4]
[366776001,1750441854579,-490.0,0.00027027,4]
[366776002,1750441854589,-337.29,0.00027027,4]
[366776003,1750441854599,-490.0,0.00027027,4]
[366776004,1750441854609,-490.0,0.00027027,4]
[366776005,1750441854620,-490.0,0.00027027,4]
[366776006,1750441854630,-490.0,0.00027027,4]
[366776007,1750441854640,-490.0,0.00027027,4]
[366776008,1750441854651,-490.0,0.00027027,4]
[366776009,1750441854661,-490.0,0.00027027,4]
[366776010,1750441854670,-490.0,0.00027027,4]
[366776011,1750441854680,-167.3892,0.00027027,4]
[366776012,1750441854691,-490.0,0.00027027,4]
[366776013,1750441854701,-490.0,0.00027027,4]
[366776014,1750441854711,-490.0,0.00027027,4]
[366776015,1750441854720,-490.0,0.00027027,4]
[366776016,1750441854732,-490.0,0.00027027,4]
[366776017,1750441854742,-490.0,0.00027027,4]
[366776018,1750441854753,-490.0,0.00027027,4]
[366776019,1750441854764,-490.0,0.00027027,4]
[366776020,1750441854774,-646.36,0.00027028,4]
[366776021,1750441854785,-659.78,0.00027028,4]
[366776022,1750441854795,-740.99,0.00027028,4]
[366776023,1750441854805,-713.92,0.00027028,4]
[366776024,1750441854815,-490.0,0.00027029,4]
[366776025,1750441854826,-500.0,0.00027034,4]
[366776026,1750441854837,-1740.22,0.00027034,4]
[366776027,1750441854847,-200.0,0.00027035,2]
[366776028,1750441854857,-500.0,0.00027035,2]
[366776029,1750441854867,-250.0,0.00027035,4]
[366776030,1750441854878,-3813.73861289,0.00027047,2]
[366776031,1750441854888,-500.0,0.00027062,2]
[366776032,1750441854897,-168.0,0.00027084,2]
[366776033,1750441854908,-500.0,0.0002709,2]
[366776034,1750441854918,-1039.02828413,0.00027121,2]
[366776035,1750441854928,-156.587,0.00027139,2]
[366776036,1750441854938,-693.3919763,0.00027139,2]
[366776037,1750441854948,-1680.0,0.00027155,2]
[366776038,1750441854958,-490.0,0.00027191,4]
[366776039,1750441854968,-166.87603076,0.00027193,2]
[366776040,1750441854981,-490.0,0.000272,4]
[366776041,1750441854991,-490.0,0.000272,4]
[366776042,1750441855001,-490.0,0.000272,4]
[366776043,1750441855011,-490.0,0.000272,4]
[366776044,1750441855020,-490.0,0.000272,4]
[366776045,1750441855030,-490.0,0.000272,4]
[366776046,1750441855040,-490.0,0.000272,4]
[366776047,1750441855050,-685.81,0.000272,4]
[366776048,1750441855061,-178.06,0.000272,4]
[366776049,1750441855071,-490.0,0.000272,4]
[366776050,1750441855081,-646.05,0.000272,4]
[366776051,1750441855091,-490.0,0.00027201,4]
[366776052,1750441855101,-490.0,0.00027201,4]
[366776053,1750441855111,-490.0,0.00027201,4]
[366776054,1750441855122,-490.0,0.00027201,4]
[366776055,1750441855133,-490.0,0.00027201,4]
[366776056,1750441855576,-490.0,0.00027201,4]
[366776057,1750441855600,-490.0,0.00027201,4]
[366776058,1750441855621,-490.0,0.00027201,4]
[366776059,1750441855636,-490.0,0.00027201,4]
[366776060,1750441855646,-490.0,0.00027201,4]
[366776061,1750441855658,-490.0,0.00027201,4]
[366776062,1750441855667,-490.0,0.00027201,4]
[366776063,1750441855678,-490.0,0.00027201,4]
[366776064,1750441855687,-490.0,0.00027201,4]
[366776065,1750441855697,-490.0,0.00027201,4]
[366776066,1750441855707,-625.05,0.00027201,4]
[366776067,1750441855716,-490.0,0.00027201,4]
[366776068,1750441855726,-490.0,0.00027201,4]
[366776069,1750441855737,-760.46,0.00027201,4]
[366776070,1750441855746,-490.0,0.00027201,4]
[366776071,1750441855756,-490.0,0.00027201,4]
[366776072,1750441855765,-490.0,0.00027201,4]
[366776073,1750441855775,-490.0,0.00027201,4]
[366776074,1750441855785,-490.0,0.00027201,4]
[366776075,1750441855795,-490.0,0.00027201,4]
[366776076,1750441855805,-490.0,0.00027201,4]
[366776077,1750441855815,-490.0,0.00027201,4]
[366776078,1750441855825,-490.0,0.00027201,4]
[366776079,1750441855835,-490.0,0.00027201,4]
[366776080,1750441855844,-490.0,0.00027201,4]
[366776081,1750441855854,-490.0,0.00027201,4]
[366776082,1750441855863,-490.0,0.00027201,4]
[366776083,1750441855873,-490.0,0.00027201,4]
[366776084,1750441855883,-605.39,0.00027201,4]
[366776085,1750441855893,-490.0,0.00027201,4]
[366776086,1750441855903,-490.0,0.00027201,4]
[366776087,1750441855912,-3367.75,0.00027201,4]
[366776088,1750441855922,-490.0,0.00027201,4]
[366776089,1750441855932,-490.0,0.00027201,4]
[366776090,1750441855941,-490.0,0.00027202,4]
[366776091,1750441855951,-490.0,0.00027202,4]
[366776092,1750441855961,-490.0,0.00027202,4]
[366776093,1750441855970,-490.0,0.00027202,4]
[366776094,1750441855983,-490.0,0.00027202,4]
[366776095,1750441855994,-490.0,0.00027202,4]
[366776096,1750441856003,-490.0,0.00027202,4]
[366776097,1750441856013,-490.0,0.00027202,4]
[366776098,1750441856022,-490.0,0.00027202,4]
[366776099,1750441856032,-490.0,0.00027202,4]
[366776100,1750441856042,-490.0,0.00027202,4]
[366776101,1750441856051,-490.0,0.00027202,4]
[366776102,1750441856061,-563.45,0.00027202,4]
[366776103,1750441856071,-490.0,0.00027202,4]
[366776104,1750441856080,-490.0,0.00027202,4]
[366776105,1750441856090,-240.03027923,0.00027202,4]
[366776106,1750441856100,-490.0,0.00027202,4]
[366776107,1750441856110,-431.80754624,0.00027202,4]
[366776108,1750441856119,-490.0,0.00027202,4]
[366776109,1750441856129,-490.0,0.00027202,4]
[366776110,1750441856142,-490.0,0.00027202,4]
[366776111,1750441856152,-490.0,0.00027202,4]
[366776112,1750441856162,-490.0,0.00027202,4]
[366776113,1750441856172,-490.0,0.00027202,4]
[366776114,1750441856182,-490.0,0.00027202,4]
[366776115,1750441856191,-490.0,0.00027202,4]
[366776116,1750441856201,-490.0,0.00027202,4]
[366776117,1750441856212,-490.0,0.00027202,4]
[366776118,1750441856221,-490.0,0.00027202,4]
[366776119,1750441856233,-490.0,0.00027202,4]
[366776120,1750441856243,-490.0,0.00027202,4]
[366776121,1750441856252,-490.0,0.00027202,4]
[366776122,1750441856262,-315.56,0.00027202,4]
[366776123,1750441856272,-490.0,0.00027202,4]
[366776124,1750441856282,-1503.55,0.00027202,4]
[366776125,1750441856292,-763.63,0.00027202,4]
[366776126,1750441856304,-490.0,0.00027202,4]
[366776127,1750441856315,-1179.75,0.00027202,4]
[366776128,1750441856325,-490.0,0.00027202,4]
[366776129,1750441856334,-490.0,0.00027202,4]
[366776130,1750441856344,-1945.11,0.00027202,4]
[366776131,1750441856354,-490.0,0.00027202,4]
[366776132,1750441856365,-2442.78,0.00027202,4]
[366776133,1750441856375,-490.0,0.00027202,4]
[366776134,1750441856385,-628.75,0.00027202,4]
[366776135,1750441856394,-817.61,0.00027202,4]
[366776136,1750441856404,-490.0,0.00027202,4]
[366776137,1750441856414,-490.0,0.00027202,4]
[366776138,1750441856424,-490.0,0.00027202,4]
[366776139,1750441856433,-490.0,0.00027202,4]
[366776140,1750441856443,-490.0,0.00027202,4]
[366776141,1750441856453,-490.0,0.00027202,4]
[366776142,1750441856463,-490.0,0.00027202,4]
[366776143,1750441856473,-599.87,0.00027202,4]
[366776144,1750441856484,-402.54,0.00027202,4]
[366776145,1750441856494,-663.35,0.00027202,4]
[366776146,1750441856504,-490.0,0.00027202,4]
[366776147,1750441856514,-418.88242281,0.00027202,4]
[366776148,1750441856524,-655.03,0.00027202,4]
[366776149,1750441856533,-490.0,0.00027202,4]
[366776150,1750441856543,-490.0,0.00027202,4]
[366776151,1750441856553,-490.0,0.00027202,4]
[366776152,1750441856563,-490.0,0.00027202,4]